bitfinex/quotes_BTCUSD_20250620
["timestamp","ask_amount","ask_price","bid_price","bid_amount"]
[1750418023623,5.99674439,106050.0,106040.0,0.0011]
[1750418025810,5.98104439,106050.0,106040.0,0.0011]
[1750418026737,5.99714439,106050.0,106040.0,0.0011]
[1750418027371,5.98104439,106050.0,106040.0,0.0011]
[1750418032015,5.99047363,106050.0,106040.0,0.18970807]
[1750418032220,5.99047363,106050.0,106040.0,0.19913847]
[1750418032449,5.98104439,106050.0,106040.0,0.19913847]
[1750418032653,5.82804439,106050.0,106040.0,0.19913847]
[1750418032883,5.98112439,106050.0,106040.0,0.20856878]
[1750418034050,5.98112439,106050.0,106040.0,0.19913847]
[1750418034235,5.98112439,106050.0,106040.0,0.0105304]
[1750418034697,5.97169506,106050.0,106040.0,0.0011]
[1750418035040,5.97169506,106050.0,106040.0,0.19913847]
[1750418037218,5.96532439,106050.0,106040.0,0.21453829]
[1750418037680,5.96532439,106050.0,106040.0,0.21453847]
[1750418038413,5.95589506,106050.0,106040.0,0.21453847]
[1750418039577,5.97179506,106050.0,106040.0,0.19913847]
[1750418042613,5.95589506,106050.0,106040.0,0.22376878]
[1750418043329,5.384396,106050.0,106040.0,0.22376878]
[1750418043571,0.60566689,106050.0,106040.0,0.29662622]
[1750418043815,0.41707661,106050.0,106040.0,0.29662622]
[1750418044501,0.40764719,106050.0,106040.0,0.29662622]
[1750418049943,0.4076471,106050.0,106040.0,0.29662622]
[1750418050155,0.44639536,106050.0,106040.0,0.29662622]
[1750418051122,0.64441506,106050.0,106040.0,0.29662622]
[1750418051330,0.64441506,106050.0,106040.0,0.28032622]
[1750418052882,0.64441577,106050.0,106040.0,0.28032622]
[1750418053130,0.64441577,106050.0,106040.0,0.28032639]
[1750418054085,0.62555747,106050.0,106040.0,0.28032639]
[1750418054652,0.62555747,106050.0,106040.0,0.27089644]
[1750418055286,0.61612814,106050.0,106040.0,0.27089644]
[1750418055498,0.63272814,106050.0,106040.0,0.27089662]
[1750418055706,0.63272814,106050.0,106040.0,0.28032666]
[1750418056519,0.63272814,106050.0,106040.0,0.03879762]
[1750418056520,0.62329872,106050.0,106040.0,0.03879762]
[1750418056746,0.61386921,106050.0,106040.0,0.03879762]
[1750418056953,0.62966921,106050.0,106040.0,0.03879762]
[1750418057376,5.67406521,106050.0,106040.0,0.03879762]
[1750418058223,5.67406521,106050.0,106040.0,0.0011]
[1750418060466,5.82722521,106050.0,106040.0,0.19913847]
[1750418061109,5.81142521,106050.0,106040.0,0.19913847]
[1750418062270,5.81142521,106050.0,106040.0,0.20856878]
[1750418066995,5.81142521,106050.0,106040.0,0.19913847]
[1750418068196,5.81142521,106050.0,106040.0,0.217999]
[1750418070230,5.81142521,106050.0,106040.0,0.20856878]
[1750418070995,5.81142521,106050.0,106040.0,0.19913847]
[1750418071143,5.90670414,106050.0,106040.0,0.0011]
[1750418073494,5.92290414,106050.0,106040.0,0.0011]
[1750418077883,5.92290414,106050.0,106040.0,0.19913847]
[1750418078110,5.92290414,106050.0,106040.0,0.20856878]
[1750418080036,5.92290414,106050.0,106040.0,0.0011]
[1750418082791,5.92290414,106050.0,106040.0,0.18970807]
[1750418082945,5.92290414,106050.0,106040.0,0.0011]
[1750418097736,5.92290414,106050.0,106040.0,0.18970807]
[1750418098161,5.93233365,106050.0,106040.0,0.19913829]
[1750418099346,5.91613365,106050.0,106040.0,0.18970807]
[1750418099563,5.91613365,106050.0,106040.0,0.19913847]
[1750418100548,5.93123365,106050.0,106040.0,0.0011]
[1750418100750,5.92180414,106050.0,106040.0,0.0011]
[1750418105537,5.93634499,106050.0,106040.0,0.0011]
[1750418105785,5.95895863,106050.0,106040.0,0.0011]
[1750418106023,5.98729563,106050.0,106040.0,0.0011]
[1750418106771,5.98729563,106050.0,106040.0,0.0001]
[1750418106996,5.99029563,106050.0,106040.0,0.0001]
[1750418107674,5.79777563,106050.0,106040.0,0.0001]
[1750418107881,5.95055065,106050.0,106040.0,0.18870807]
[1750418108095,5.95055065,106050.0,106040.0,0.0001]
[1750418108514,5.75895065,106050.0,106040.0,0.18870807]
[1750418108727,5.95059065,106050.0,106040.0,0.18870807]
[1750418108940,5.93399065,106050.0,106040.0,0.21333847]
[1750418109152,5.93399065,106050.0,106040.0,0.22276878]
[1750418110082,5.94949065,106050.0,106040.0,0.19813847]
[1750418112036,5.76120887,106050.0,106040.0,0.21699864]
[1750418112263,5.92447187,106050.0,106040.0,0.22326869]
[1750418112474,5.92447187,106050.0,106040.0,0.23269882]
[1750418112688,5.91504289,106050.0,106040.0,0.22326869]
[1750418113109,5.91508289,106050.0,106040.0,0.22326869]
[1750418113332,5.91508289,106050.0,106040.0,0.23269882]
[1750418116220,5.91508289,106050.0,106040.0,0.0158]
[1750418116426,5.92185365,106050.0,106040.0,0.0001]
[1750418117446,5.92185365,106050.0,106040.0,0.18870807]
[1750418117668,5.92185365,106050.0,106040.0,0.19813847]
[1750418118685,5.92185365,106050.0,106040.0,0.20756878]
[1750418120403,5.92185365,106050.0,106040.0,0.0001]
[1750418120646,5.91242414,106050.0,106040.0,0.0001]
[1750418122781,5.72078414,106050.0,106040.0,0.0001]
[1750418123014,5.91246414,106050.0,106040.0,0.18870807]
[1750418123739,5.91246414,106050.0,106040.0,0.0001]
[1750418126473,5.92856414,106050.0,106040.0,0.0001]
[1750418126945,5.95689814,106050.0,106040.0,0.0001]
[1750418127169,5.97143899,106050.0,106040.0,0.0001]
[1750418136416,5.99404571,106050.0,106040.0,0.0001]
[1750418136635,5.97143899,106050.0,106040.0,0.0001]
[1750418139322,5.99404602,106050.0,106040.0,0.0001]
[1750418139734,6.02053839,106050.0,106040.0,0.0001]
[1750418140345,6.02053831,106050.0,106040.0,0.0001]
[1750418141659,6.00287681,106050.0,106040.0,0.0001]
[1750418142304,6.02053662,106050.0,106040.0,0.0001]
[1750418142514,6.02715897,106050.0,106040.0,0.0001]
[1750418143200,6.02715565,106050.0,106040.0,0.0001]
[1750418144304,6.02715273,106050.0,106040.0,0.0001]
[1750418144778,6.0271527,106050.0,106040.0,0.0001]
[1750418144998,6.0771527,106050.0,106040.0,0.0001]
[1750418145218,6.10326685,106050.0,106040.0,0.0001]
[1750418145432,5.28817514,106040.0,106030.0,0.0001]
[1750418145641,5.66275905,106040.0,106030.0,0.0001]
[1750418146112,5.66275183,106040.0,106030.0,0.0001]
[1750418146589,6.00275183,106040.0,106030.0,0.0001]
[1750418146839,6.03409283,106040.0,106030.0,0.00014807]
[1750418147312,6.03809283,106040.0,106030.0,0.00014807]
[1750418147498,6.062348,106040.0,106030.0,0.00014807]
[1750418148208,5.28869382,106030.0,106020.0,0.0001]
[1750418148442,5.28869382,106030.0,106020.0,0.00014801]
[1750418148443,5.6709626,106030.0,106020.0,0.00014801]
[1750418149118,6.0109626,106030.0,106020.0,0.00014801]
[1750418149989,6.0109626,106030.0,106020.0,0.00314801]
[1750418150646,6.0393066,106030.0,106020.0,0.00314801]
[1750418151316,5.8475866,106030.0,106020.0,0.00314801]
[1750418151535,6.0388666,106030.0,106020.0,0.00314801]
[1750418153479,5.2873125,106020.0,106010.0,0.0001]
[1750418153660,5.85702128,106020.0,106010.0,0.00014466]
[1750418154344,6.19702128,106020.0,106010.0,0.00014466]
[1750418154555,6.219567,106020.0,106010.0,0.00014466]
[1750418154994,0.58463518,106010.0,106000.0,0.0201]
[1750418155203,5.96965741,106010.0,106000.0,0.02018892]
[1750418155880,5.98984541,106010.0,106000.0,0.02018892]
[1750418156771,5.99184541,106010.0,106000.0,0.02018892]
[1750418157235,5.99484541,106010.0,106000.0,0.02018892]
[1750418165615,5.99484541,106010.0,106000.0,0.01518892]
[1750418169503,5.97854541,106010.0,106000.0,0.01518892]
[1750418169942,5.87854541,106010.0,106000.0,0.01518892]
[1750418170150,5.8879783,106010.0,106000.0,0.01518892]
[1750418171997,5.9039783,106010.0,106000.0,0.01518892]
[1750418174643,5.26862351,106000.0,105990.0,0.016]
[1750418174888,5.26862351,106000.0,105990.0,0.00024134]
[1750418174889,5.6252578,106000.0,105990.0,0.00024134]
[1750418175564,5.65370068,106000.0,105990.0,0.00024134]
[1750418175781,5.65470068,106000.0,105990.0,0.01584134]
[1750418176198,5.65570068,106000.0,105990.0,0.00024134]
[1750418176427,5.67090068,106000.0,105990.0,0.00024134]
[1750418177272,5.68544153,106000.0,105990.0,0.00024134]
[1750418177699,6.18364153,106000.0,105990.0,0.00024134]
[1750418178126,6.53894153,106000.0,105990.0,0.00024134]
[1750418178811,6.548021,106000.0,105990.0,0.00024134]
[1750418181204,6.55463193,106000.0,105990.0,0.00024134]
[1750418183382,6.57720772,106000.0,105990.0,0.00024134]
[1750418183821,6.07900772,106000.0,105990.0,0.00024134]
[1750418184043,6.07900835,106000.0,105990.0,0.00024134]
[1750418184264,6.08782986,106000.0,105990.0,0.00024134]
[1750418185150,5.62916856,105990.0,105980.0,0.0001]
[1750418185392,6.51008408,105990.0,105980.0,0.0001]
[1750418185850,0.21269126,105980.0,105970.0,0.0004718]
[1750418186071,0.21269126,105980.0,105970.0,0.00041884]
[1750418186072,5.55131354,105980.0,105970.0,0.00041884]
[1750418186279,5.38155354,105980.0,105970.0,0.00041884]
[1750418186512,5.67094339,105980.0,105970.0,0.01621884]
[1750418186960,5.67094577,105980.0,105970.0,0.01621884]
[1750418187171,5.67394577,105980.0,105970.0,0.01621884]
[1750418187812,5.47321183,105980.0,105970.0,0.01621884]
[1750418188020,5.63029519,105980.0,105970.0,0.03191884]
[1750418188437,5.43609519,105980.0,105970.0,0.03191884]
[1750418188657,5.63025519,105980.0,105970.0,0.03191884]
[1750418189329,5.63225519,105980.0,105970.0,0.03191884]
[1750418191107,5.63225519,105980.0,105970.0,0.01621884]
[1750418193108,5.64745519,105980.0,105970.0,0.00041884]
[1750418197258,5.66199604,105980.0,105970.0,0.00041884]
[1750418199163,5.67719604,105980.0,105970.0,0.00041884]
[1750418199382,6.03367104,105980.0,105970.0,0.00041884]
[1750418199814,6.05618651,105980.0,105970.0,0.00041884]
[1750418203293,6.05618651,105980.0,105950.0,7.424e-05]
[1750418203294,5.28196173,105960.0,105950.0,7.424e-05]
[1750418203511,5.62382796,105960.0,105950.0,0.00054536]
[1750418204151,5.65218896,105960.0,105950.0,0.00054536]
[1750418204796,5.65218896,105960.0,105950.0,0.00354536]
[1750418205003,5.66718896,105960.0,105950.0,0.00354536]
[1750418205864,5.65218896,105960.0,105950.0,0.00254536]
[1750418206085,5.65218896,105960.0,105950.0,0.00054536]
[1750418206294,5.65418896,105960.0,105950.0,0.00054536]
[1750418206712,5.65618896,105960.0,105950.0,0.00054536]
[1750418207164,5.64078896,105960.0,105950.0,0.01694536]
[1750418207591,5.59780711,105960.0,105950.0,0.03214536]
[1750418209087,5.44392711,105960.0,105950.0,0.03214536]
[1750418209345,5.63776711,105960.0,105950.0,0.03214536]
[1750418209857,5.63780711,105960.0,105950.0,0.03214536]
[1750418210486,5.63780711,105960.0,105950.0,0.01694536]
[1750418214302,5.48388711,105960.0,105950.0,0.03284536]
[1750418214510,5.63788711,105960.0,105950.0,0.03284536]
[1750418216065,5.48388711,105960.0,105950.0,0.03284536]
[1750418216211,5.63788711,105960.0,105950.0,0.03284536]
[1750418218229,5.63772711,105960.0,105950.0,0.22161364]
[1750418218437,5.97772711,105960.0,105950.0,0.03284536]
[1750418218845,5.78392711,105960.0,105950.0,0.03284536]
[1750418219048,5.97768711,105960.0,105950.0,0.03284536]
[1750418219501,5.78392711,105960.0,105950.0,0.03284536]
[1750418219724,5.97768711,105960.0,105950.0,0.03284536]
[1750418224850,5.97768711,105960.0,105950.0,0.01694536]
[1750418227103,5.97752711,105960.0,105950.0,0.01694536]
[1750418230892,5.99332711,105960.0,105950.0,0.00054536]
[1750418232965,6.00972711,105960.0,105950.0,0.00054536]
[1750418233439,5.99332711,105960.0,105950.0,0.00054536]
[1750418233677,5.79972711,105960.0,105950.0,0.00054536]
[1750418233892,5.99352711,105960.0,105950.0,0.00054536]
[1750418236858,6.00892711,105960.0,105950.0,0.00054536]
[1750418237075,6.02346796,105960.0,105950.0,0.00054536]
[1750418237288,6.0460405,105960.0,105950.0,0.00054536]
[1750418238398,6.05265295,105960.0,105950.0,0.00054536]
[1750418239046,6.05065295,105960.0,105950.0,0.00054536]
[1750418239487,6.05265295,105960.0,105950.0,0.00054536]
[1750418239701,6.05665295,105960.0,105950.0,0.00054536]
[1750418240438,6.05664184,105960.0,105950.0,0.00054536]
[1750418241307,6.05663832,105960.0,105950.0,0.00054536]
[1750418241936,5.86283832,105960.0,105950.0,0.00054536]
[1750418242144,6.05711832,105960.0,105950.0,0.00054536]
[1750418242589,6.057118,105960.0,105950.0,0.00054536]
[1750418242813,6.08339531,105960.0,105950.0,0.00054536]
[1750418243027,6.057118,105960.0,105950.0,0.00054536]
[1750418246445,5.887278,105960.0,105950.0,0.00054536]
[1750418246667,5.888518,105960.0,105950.0,0.00054536]
[1750418246885,6.04467413,105960.0,105950.0,0.00054536]
[1750418247315,6.04465631,105960.0,105950.0,0.00054536]
[1750418247645,6.03805157,105960.0,105950.0,0.00054536]
[1750418248833,6.08022888,105960.0,105950.0,0.00054536]
[1750418249095,6.05395157,105960.0,105950.0,0.00054536]
[1750418251564,6.06055495,105960.0,105950.0,0.00054536]
[1750418252630,6.05395157,105960.0,105950.0,0.00054536]
[1750418253096,6.08891814,105960.0,105950.0,0.00054536]
[1750418253303,6.11519545,105960.0,105950.0,0.00054536]
[1750418257612,6.16519587,105960.0,105950.0,0.00054536]
[1750418258282,6.16519931,105960.0,105950.0,0.00054536]
[1750418258788,6.19338208,105960.0,105950.0,0.00054536]
[1750418259001,6.138922,105960.0,105950.0,0.00054536]
[1750418261533,0.54330913,105950.0,105930.0,0.08346]
[1750418261760,5.524241,105940.0,105930.0,0.05306]
[1750418262255,5.864241,105940.0,105930.0,0.05306]
[1750418262684,5.892609,105940.0,105930.0,0.05306]
[1750418263358,5.92116522,105940.0,105930.0,0.05306]
[1750418263766,5.92116522,105940.0,105930.0,0.05406]
[1750418264020,6.01643507,105940.0,105930.0,0.05406]
[1750418266534,6.05418994,105940.0,105930.0,0.05406]
[1750418266888,6.01643507,105940.0,105930.0,0.05406]
[1750418271267,6.03143507,105940.0,105930.0,0.05406]
[1750418271482,6.01643507,105940.0,105930.0,0.05406]
[1750418273393,5.86063507,105940.0,105930.0,0.05406]
[1750418273595,6.04143507,105940.0,105930.0,0.07036]
[1750418276221,5.84463507,105940.0,105930.0,0.07036]
[1750418276470,6.04131507,105940.0,105930.0,0.07036]
[1750418277147,6.05761507,105940.0,105930.0,0.05406]
[1750418280379,6.04131507,105940.0,105930.0,0.07056]
[1750418280588,6.05761507,105940.0,105930.0,0.07056]
[1750418282263,6.08017789,105940.0,105930.0,0.05406]
[1750418282685,5.86719789,105940.0,105930.0,0.05406]
[1750418282902,6.03482989,105940.0,105930.0,0.07056]
[1750418283119,6.01226707,105940.0,105930.0,0.07056]
[1750418284604,6.04063207,105940.0,105930.0,0.07056]
[1750418285528,6.06320151,105940.0,105930.0,0.07056]
[1750418287735,5.89334066,105940.0,105930.0,0.07056]
[1750418287953,5.90226515,105940.0,105930.0,0.08706]
[1750418297276,5.71570418,105940.0,105930.0,0.08706]
[1750418297521,5.88333918,105940.0,105930.0,0.08706]
[1750418297746,5.97860903,105940.0,105930.0,0.08706]
[1750418298392,5.97860903,105940.0,105930.0,0.07056]
[1750418299277,5.97860903,105940.0,105930.0,0.05406]
[1750418299496,5.99500903,105940.0,105930.0,0.05406]
[1750418299706,6.02337303,105940.0,105930.0,0.05406]
[1750418301571,6.02337303,105940.0,105930.0,0.05306]
[1750418302000,6.02437303,105940.0,105930.0,0.05306]
[1750418302452,6.02637303,105940.0,105930.0,0.05306]
[1750418305122,6.00997303,105940.0,105930.0,0.05306]
[1750418305332,6.00997303,105940.0,105930.0,0.06896]
[1750418305532,5.98160903,105940.0,105930.0,0.06896]
[1750418309987,5.98140903,105940.0,105930.0,0.06896]
[1750418311069,5.98140903,105940.0,105930.0,0.08476]
[1750418311925,5.78560903,105940.0,105930.0,0.08476]
[1750418312139,5.81665,105940.0,105930.0,0.08476]
[1750418312353,5.97173,105940.0,105930.0,0.08476]
[1750418314063,5.97173,105940.0,105930.0,0.28300411]
[1750418314761,5.50154382,105940.0,105930.0,0.30188386]
[1750418314999,5.89524922,105940.0,105930.0,0.31132343]
[1750418315965,5.89524922,105940.0,105930.0,0.31132361]
[1750418316179,5.89524922,105940.0,105930.0,0.32076327]
[1750418317074,5.71590144,105940.0,105930.0,0.32076265]
[1750418317295,5.40627344,105940.0,105930.0,0.32076265]
[1750418317517,5.61111247,105940.0,105930.0,0.32076265]
[1750418317746,5.60167344,105940.0,105930.0,0.32076265]
[1750418318423,5.61111247,105940.0,105930.0,0.32076265]
[1750418318628,5.70638232,105940.0,105930.0,0.32076265]
[1750418318834,5.61111247,105940.0,105930.0,0.32076265]
[1750418319076,5.45619247,105940.0,105930.0,0.32076265]
[1750418319285,5.44675344,105940.0,105930.0,0.32076265]
[1750418319849,5.45619238,105940.0,105930.0,0.32076265]
[1750418320157,5.55146223,105940.0,105930.0,0.32076265]
[1750418320442,0.003,105940.0,105930.0,0.85599511]
[1750418320923,0.003,105940.0,105930.0,0.97963004]
[1750418321160,0.002,105940.0,105930.0,0.97963004]
[1750418321398,0.05038725,105960.0,105950.0,0.21708244]
[1750418321669,0.04095053,105960.0,105950.0,0.57244657]
[1750418321910,0.04095053,105960.0,105950.0,0.24858244]
[1750418322584,0.05038725,105960.0,105950.0,0.24858244]
[1750418322791,0.05038725,105960.0,105950.0,0.25058244]
[1750418323221,0.04095053,105960.0,105950.0,0.25358244]
[1750418323426,0.05038725,105960.0,105950.0,0.25358244]
[1750418324308,0.05982415,105960.0,105950.0,0.25358244]
[1750418324919,0.13699487,105960.0,105950.0,0.25358244]
[1750418325121,0.14643194,105960.0,105950.0,0.25358244]
[1750418325327,0.05982415,105960.0,105950.0,0.25358244]
[1750418325965,0.06926122,105960.0,105950.0,0.25358244]
[1750418326162,0.06926113,105960.0,105950.0,0.25358244]
[1750418326374,0.05982415,105960.0,105950.0,0.25358244]
[1750418328050,0.06926122,105960.0,105950.0,0.25358244]
[1750418330469,0.07869847,105960.0,105950.0,0.25358244]
[1750418330682,0.07869838,105960.0,105950.0,0.25358244]
[1750418330909,0.15586925,105960.0,105950.0,0.25358244]
[1750418333230,0.1653065,105960.0,105950.0,0.25358244]
[1750418333861,0.15586925,105960.0,105950.0,0.25358244]
[1750418335167,0.16530659,105960.0,105950.0,0.25358244]
[1750418335579,0.15586925,105960.0,105950.0,0.25358244]
[1750418337522,0.14643209,105960.0,105950.0,0.25358244]
[1750418337831,0.06926122,105960.0,105950.0,0.25358244]
[1750418337970,0.07869847,105960.0,105950.0,0.25358244]
[1750418338147,0.06926122,105960.0,105950.0,0.25358244]
[1750418339153,0.05982415,105960.0,105950.0,0.25358244]
[1750418339377,0.06926122,105960.0,105950.0,0.25358244]
[1750418340228,0.05038725,105960.0,105950.0,0.25358244]
[1750418340446,0.05982415,105960.0,105950.0,0.25358244]
[1750418340659,0.06926131,105960.0,105950.0,0.25358244]
[1750418340870,0.05982415,105960.0,105950.0,0.25358244]
[1750418341360,0.06926122,105960.0,105950.0,0.25358244]
[1750418341596,0.05982415,105960.0,105950.0,0.25358244]
[1750418341802,0.06926122,105960.0,105950.0,0.25358244]
[1750418342016,0.05982415,105960.0,105950.0,0.25358244]
[1750418342229,0.06926113,105960.0,105950.0,0.25358244]
[1750418342526,0.07869829,105960.0,105950.0,0.25358244]
[1750418343082,0.06926113,105960.0,105950.0,0.25358244]
[1750418343294,0.07869829,105960.0,105950.0,0.25358244]
[1750418343504,0.14038513,105960.0,105950.0,0.25358244]
[1750418343676,0.14982247,105960.0,105950.0,0.25358244]
[1750418344015,0.14038513,105960.0,105950.0,0.25358244]
[1750418344241,0.14982247,105960.0,105950.0,0.25358244]
[1750418344625,0.14982247,105960.0,105950.0,0.23838244]
[1750418344853,0.14038513,105960.0,105950.0,0.23838244]
[1750418345054,0.14976793,105960.0,105950.0,0.23838244]
[1750418345496,0.15920527,105960.0,105950.0,0.23838244]
[1750418345708,0.15920518,105960.0,105950.0,0.23838244]
[1750418345863,0.14976793,105960.0,105950.0,0.23838244]
[1750418346064,0.08808109,105960.0,105950.0,0.25488244]
[1750418346905,0.09751834,105960.0,105950.0,0.25488244]
[1750418347137,0.09751896,105960.0,105950.0,0.25488244]
[1750418347574,0.09751896,105960.0,105950.0,0.23838244]
[1750418347797,0.05938441,105960.0,105950.0,0.23838244]
[1750418348007,0.06882157,105960.0,105950.0,0.25408244]
[1750418348643,0.04994743,105960.0,105950.0,0.25408244]
[1750418348993,0.04051053,105960.0,105950.0,0.25408244]
[1750418349194,0.00047053,105960.0,105950.0,0.25408244]
[1750418349650,0.00047053,105960.0,105950.0,0.22208244]
[1750418349890,0.03464423,105960.0,105950.0,0.37668244]
[1750418350082,0.09931958,105960.0,105950.0,0.37668244]
[1750418350506,0.10875665,105960.0,105950.0,0.39218244]
[1750418350715,0.02878122,105960.0,105950.0,0.39218244]
[1750418351520,0.02878122,105960.0,105950.0,0.44871077]
[1750418351936,0.05331847,105960.0,105950.0,0.43321077]
[1750418352135,0.04388122,105960.0,105950.0,0.43321077]
[1750418352678,0.10853672,105960.0,105950.0,0.43321077]
[1750418353487,0.11797397,105960.0,105950.0,0.43321077]
[1750418353680,0.10853672,105960.0,105950.0,0.43321077]
[1750418354437,0.10287397,105960.0,105950.0,0.43321077]
[1750418354699,0.09343672,105960.0,105950.0,0.44841077]
[1750418355057,0.10287397,105960.0,105950.0,0.44841077]
[1750418355309,0.03821838,105960.0,105950.0,0.44841077]
[1750418356578,0.04765572,105960.0,105950.0,0.44841077]
[1750418356793,0.04765563,105960.0,105950.0,0.43897298]
[1750418357209,0.25280681,105960.0,105950.0,0.43305085]
[1750418357418,0.33741183,105960.0,105950.0,0.43305085]
[1750418358458,0.33741183,105960.0,105950.0,0.43305112]
[1750418358874,0.33741183,105960.0,105950.0,0.37652279]
[1750418359088,0.32797476,105960.0,105950.0,0.22208279]
[1750418359518,0.16038934,105960.0,105950.0,0.23152058]
[1750418359727,0.16982668,105960.0,105950.0,0.23152058]
[1750418360316,0.16038934,105960.0,105950.0,0.23152058]
[1750418360976,0.14151493,105960.0,105950.0,0.23152058]
[1750418361674,0.12511493,105960.0,105950.0,0.24742058]
[1750418362726,0.04051053,105960.0,105950.0,0.26362058]
[1750418362944,0.04051053,105960.0,105950.0,0.32014891]
[1750418362945,0.00047053,105960.0,105950.0,0.32014891]
[1750418363160,0.00047053,105960.0,105950.0,0.64372849]
[1750418363613,0.00047053,105960.0,105950.0,0.32014891]
[1750418364884,0.00047053,105960.0,105950.0,0.73900742]
[1750418368104,0.00047053,105960.0,105950.0,0.35889951]
[1750418368515,0.00047053,105960.0,105950.0,0.73908989]
[1750418371398,0.00047053,105960.0,105950.0,0.41551031]
[1750418371626,0.00047053,105960.0,105950.0,0.30403138]
[1750418371842,0.00047053,105960.0,105950.0,0.78193096]
[1750418372053,0.00047053,105960.0,105950.0,0.79793096]
[1750418375900,0.00047053,105960.0,105950.0,0.89320989]
[1750418376804,0.00047053,105960.0,105950.0,1.21678947]
[1750418377015,0.00047053,105960.0,105950.0,0.91156117]
[1750418377234,0.00047053,105960.0,105950.0,1.21156117]
[1750418377737,0.00047053,105960.0,105950.0,1.22610202]
[1750418377956,0.00047053,105960.0,105950.0,1.48598024]
[1750418378162,0.00047053,105960.0,105950.0,1.56436585]
[1750418378391,0.00047053,105960.0,105950.0,1.56936585]
[1750418378610,0.00047053,105960.0,105950.0,1.49398024]
[1750418378975,0.00047053,105960.0,105950.0,1.58788246]
[1750418379199,0.00047053,105960.0,105950.0,1.49398024]
[1750418379395,0.00047053,105960.0,105950.0,1.58788246]
[1750418379594,0.00047053,105960.0,105950.0,1.91130234]
[1750418380444,0.00047053,105960.0,105950.0,1.58788246]
[1750418380596,0.00047053,105960.0,105950.0,1.91130234]
[1750418381190,0.00047053,105960.0,105950.0,1.81740012]
[1750418382759,0.00047053,105960.0,105950.0,1.84574312]
[1750418383787,0.00047053,105960.0,105950.0,1.92101805]
[1750418385876,0.00047053,105960.0,105950.0,1.84574312]
[1750418386082,0.00047053,105960.0,105950.0,2.33964534]
[1750418386291,0.00047053,105960.0,105950.0,2.37988534]
[1750418386945,0.00047053,105960.0,105950.0,2.37688534]
[1750418387153,0.00047053,105960.0,105950.0,2.37988534]
[1750418387365,0.00047053,105960.0,105950.0,2.37488534]
[1750418387572,0.00047053,105960.0,105950.0,2.37788534]
[1750418387785,0.00047053,105960.0,105950.0,2.67418534]
[1750418389434,0.00047053,105960.0,105950.0,2.77358534]
[1750418396390,0.00047053,105960.0,105950.0,2.12674558]
[1750418396617,0.00047053,105960.0,105950.0,2.77358534]
[1750418397072,0.00047053,105960.0,105950.0,2.7734683]
[1750418398922,0.00047053,105960.0,105950.0,2.5789083]
[1750418399153,0.00047053,105960.0,105950.0,2.7732683]
[1750418399901,0.00047053,105960.0,105950.0,2.5789083]
[1750418400109,0.00047053,105960.0,105950.0,2.7732683]
[1750418402193,0.00047053,105960.0,105950.0,3.09662966]
[1750418402921,5.421e-05,105960.0,105950.0,3.00272744]
[1750418403130,5.421e-05,105960.0,105950.0,3.13443114]
[1750418403581,5.421e-05,105960.0,105950.0,3.13143114]
[1750418403843,5.421e-05,105960.0,105950.0,3.33043114]
[1750418404108,5e-05,105990.0,105980.0,0.89358456]
[1750418404347,5e-05,105990.0,105980.0,1.25860442]
[1750418404804,5e-05,105990.0,105980.0,1.27460442]
[1750418405024,5e-05,105990.0,105980.0,0.95112862]
[1750418405711,5e-05,105990.0,105980.0,0.95212862]
[1750418406981,5e-05,105990.0,105980.0,0.95312862]
[1750418407617,5e-05,105990.0,105980.0,0.96812862]
[1750418407835,5e-05,105990.0,105980.0,1.53708849]
[1750418408080,5e-05,105990.0,105980.0,1.55591846]
[1750418411105,5e-05,105990.0,105980.0,1.87916538]
[1750418411531,5e-05,105990.0,105980.0,1.55591846]
[1750418411773,5e-05,105990.0,105980.0,1.23267154]
[1750418412013,5e-05,105990.0,105980.0,1.55591846]
[1750418412232,5e-05,105990.0,105980.0,1.54107846]
[1750418412665,5e-05,105990.0,105980.0,1.44692861]
[1750418412883,5e-05,105990.0,105980.0,1.54107846]
[1750418413101,5e-05,105990.0,105980.0,1.21783154]
[1750418413349,5e-05,105990.0,105980.0,1.54107846]
[1750418417233,5e-05,105990.0,105980.0,1.44692861]
[1750418417468,5e-05,105990.0,105980.0,1.50692861]
[1750418420025,5e-05,105990.0,105980.0,1.50676861]
[1750418420491,5e-05,105990.0,105980.0,1.31248861]
[1750418420695,5e-05,105990.0,105980.0,1.50668861]
[1750418422157,5e-05,105990.0,105980.0,1.60083846]
[1750418425380,0.01635,105990.0,105980.0,1.19133846]
[1750418425581,0.01635,105990.0,105980.0,1.38545846]
[1750418426864,0.01635,105990.0,105980.0,1.70869426]
[1750418429526,0.01635,105990.0,105980.0,1.3853329]
[1750418429763,0.01635,105990.0,105980.0,1.70857426]
[1750418430817,0.01635,105990.0,105980.0,1.70853426]
[1750418433585,0.01635,105990.0,105980.0,1.51457426]
[1750418433809,0.01635,105990.0,105980.0,1.70829426]
[1750418434463,5e-05,105990.0,105980.0,1.72379426]
[1750418434645,5e-05,105990.0,105980.0,1.77379426]
[1750418439417,5e-05,105990.0,105980.0,1.87319426]
[1750418439633,5e-05,105990.0,105980.0,1.77379426]
[1750418441018,5e-05,105990.0,105980.0,1.12731154]
[1750418441242,5e-05,105990.0,105980.0,1.77379426]
[1750418442218,5e-05,105990.0,105980.0,1.79029426]
[1750418445520,5e-05,105990.0,105980.0,1.77379426]
[1750418449290,5e-05,105990.0,105980.0,1.67964441]
[1750418449511,5e-05,105990.0,105980.0,1.77401696]
[1750418450865,5e-05,105990.0,105980.0,1.67964441]
[1750418451045,5e-05,105990.0,105980.0,1.77401613]
[1750418451714,5e-05,105990.0,105980.0,1.67964441]
[1750418452204,5e-05,105990.0,105980.0,1.77401647]
[1750418454003,5e-05,105990.0,105980.0,1.67964441]
[1750418454754,5e-05,105990.0,105980.0,1.77401589]
[1750418455547,5e-05,105990.0,105980.0,0.97365317]
[1750418455758,0.01575,105990.0,105980.0,1.75831589]
[1750418456592,0.00377048,105990.0,105980.0,1.75831589]
[1750418460357,0.00377048,105990.0,105980.0,1.56479589]
[1750418460589,0.00377048,105990.0,105980.0,1.75831589]
[1750418462992,0.1319,106000.0,105990.0,0.23154136]
[1750418463208,0.1319,106000.0,105990.0,0.80374165]
[1750418463628,0.1319,106000.0,105990.0,0.83207565]
[1750418464969,0.1319,106000.0,105990.0,0.50883429]
[1750418465174,0.1319,106000.0,105990.0,0.83207565]
[1750418466596,0.1319,106000.0,105990.0,0.8416669]
[1750418467269,0.1319,106000.0,105990.0,0.35020469]
[1750418467481,0.1319,106000.0,105990.0,0.79875205]
[1750418468137,0.1319,106000.0,105990.0,0.87426187]
[1750418469883,0.1319,106000.0,105990.0,0.81998187]
[1750418470027,0.1319,106000.0,105990.0,0.55102051]
[1750418470239,0.1319,106000.0,105990.0,0.87426187]
[1750418470849,0.1319,106000.0,105990.0,0.55102051]
[1750418471076,0.1319,106000.0,105990.0,0.87426187]
[1750418474416,0.1319,106000.0,105990.0,0.55102051]
[1750418474837,0.1319,106000.0,105990.0,0.87426187]